[Event "*** Titled Tuesday 3|2 Blitz"]
[Site "Chess.com"]
[Date "2016.01.05"]
[Round "3"]
[White "RobertoSuardi"]
[Black "ChessChronicles123"]
[Result "1-0"]
[WhiteElo "1891"]
[BlackElo "1697"]
[TimeControl "180+2"]
[EndTime "17:37:41 PST"]
[Termination "RobertoSuardi won by resignation"]

1. Nf3 {[%clk 0:03:01.9]} 1... d5 {[%clk 0:02:58.7]} 2. b3 {[%clk 0:03:01.7]}
2... Nf6 {[%clk 0:02:56.8]} 3. Bb2 {[%clk 0:03:02.2]} 3... Nbd7 {[%clk
0:02:55.2]} 4. e3 {[%clk 0:03:03.7]} 4... g6 {[%clk 0:02:56.3]} 5. Be2 {[%clk
0:03:04]} 5... Bg7 {[%clk 0:02:57.8]} 6. c4 {[%clk 0:03:04]} 6... e6 {[%clk
0:02:54.8]} 7. O-O {[%clk 0:03:03.5]} 7... c5 {[%clk 0:02:55.8]} 8. cxd5 {[%clk
0:03:03.4]} 8... exd5 {[%clk 0:02:55.8]} 9. d4 {[%clk 0:03:04.4]} 9... b6 {[%clk
0:02:52.1]} 10. dxc5 {[%clk 0:03:03.3]} 10... bxc5 {[%clk 0:02:52.9]} 11. Nc3
{[%clk 0:03:04.3]} 11... Bb7 {[%clk 0:02:54]} 12. Na4 {[%clk 0:03:01.4]} 12...
O-O {[%clk 0:02:53.5]} 13. Rc1 {[%clk 0:03:01.1]} 13... Rc8 {[%clk 0:02:53.4]}
14. Ne5 {[%clk 0:02:53.3]} 14... Nxe5 {[%clk 0:02:33.9]} 15. Bxe5 {[%clk
0:02:51.8]} 15... Qe7 {[%clk 0:02:34.7]} 16. Bb2 {[%clk 0:02:46.3]} 16... Rfd8
{[%clk 0:02:30.9]} 17. Bf3 {[%clk 0:02:46.6]} 17... Ne4 {[%clk 0:02:29.9]} 18.
Bxg7 {[%clk 0:02:44.1]} 18... Kxg7 {[%clk 0:02:30.3]} 19. Bxe4 {[%clk
0:02:44.1]} 19... dxe4 {[%clk 0:02:29.9]} 20. Qe2 {[%clk 0:02:42.3]} 20... f5
{[%clk 0:02:27.6]} 21. Rfd1 {[%clk 0:02:43]} 21... Rxd1+ {[%clk 0:02:20.4]} 22.
Rxd1 {[%clk 0:02:42.3]} 22... Bc6 {[%clk 0:02:19]} 23. Nb2 {[%clk 0:02:39.6]}
23... Rd8 {[%clk 0:02:18.6]} 24. Rd2 {[%clk 0:01:55]} 24... Rxd2 {[%clk
0:02:18]} 25. Qxd2 {[%clk 0:01:55.5]} 25... Qd7 {[%clk 0:01:42.9]} 26. Qxd7+
{[%clk 0:01:53.7]} 26... Bxd7 {[%clk 0:01:43]} 27. Kf1 {[%clk 0:01:55.2]} 27...
Kf6 {[%clk 0:01:41.5]} 28. Ke1 {[%clk 0:01:56.1]} 28... Bb5 {[%clk 0:01:42.4]}
29. h4 {[%clk 0:01:55.5]} 29... Ke5 {[%clk 0:01:39.6]} 30. g3 {[%clk 0:01:55.1]}
30... Kd5 {[%clk 0:01:39.8]} 31. Kd2 {[%clk 0:01:54.7]} 31... c4 {[%clk
0:01:38.4]} 32. b4 {[%clk 0:01:50.7]} 32... Kc6 {[%clk 0:01:27.5]} 33. Kc3
{[%clk 0:01:51]} 33... Kd5 {[%clk 0:01:28]} 34. a4 {[%clk 0:01:48]} 34... Bc6
{[%clk 0:01:24.7]} 35. b5 {[%clk 0:01:47.5]} 35... Bd7 {[%clk 0:01:08.3]} 36.
Nxc4 {[%clk 0:01:44.7]} 36... Kc5 {[%clk 0:00:57.7]} 37. Nd2 {[%clk 0:01:37.5]}
37... a6 {[%clk 0:00:54.3]} 38. Nb3+ {[%clk 0:01:33.4]} 38... Kb6 {[%clk
0:00:53.8]} 39. bxa6 {[%clk 0:01:33.7]} 39... Bxa4 {[%clk 0:00:54.7]} 40. a7
{[%clk 0:01:22.6]} 40... Kxa7 {[%clk 0:00:54.3]} 41. Nc5 {[%clk 0:01:23]} 41...
Bc6 {[%clk 0:00:52.9]} 42. Kd4 {[%clk 0:01:23.9]} 42... Kb6 {[%clk 0:00:53.2]}
43. Ne6 {[%clk 0:01:24]} 43... Be8 {[%clk 0:00:39.8]} 44. Ke5 {[%clk 0:01:22]}
44... Kc6 {[%clk 0:00:39.5]} 45. Kf6 {[%clk 0:01:18.7]} 45... Kd6 {[%clk
0:00:38.9]} 46. Nf8 {[%clk 0:01:15.6]} 46... Kd5 {[%clk 0:00:30]} 47. Nxh7
{[%clk 0:01:15.8]} 47... Kc4 {[%clk 0:00:31.6]} 48. Nf8 {[%clk 0:01:16.5]} 48...
Kd3 {[%clk 0:00:32]} 49. Nxg6 {[%clk 0:01:17.1]} 49... Ke2 {[%clk 0:00:27.7]}
50. h5 {[%clk 0:01:18.2]} 50... Kxf2 {[%clk 0:00:27]} 51. h6 {[%clk 0:01:19.7]}
51... Bxg6 {[%clk 0:00:23.6]} 52. Kxg6 {[%clk 0:01:19.9]} 52... Kxe3 {[%clk
0:00:23.2]} 53. Kxf5 {[%clk 0:01:20.1]} 53... Kf3 {[%clk 0:00:14.5]} 54. h7
{[%clk 0:01:21.6]} 54... e3 {[%clk 0:00:15.9]} 55. h8=Q {[%clk 0:01:22.8]} 55...
e2 {[%clk 0:00:15.7]} 56. Qe5 {[%clk 0:01:24]} 56... Kf2 {[%clk 0:00:14.3]} 57.
g4 {[%clk 0:01:24.3]} 57... e1=Q {[%clk 0:00:14]} 58. Qxe1+ {[%clk 0:01:24.4]}
58... Kxe1 {[%clk 0:00:15.2]} 59. g5 {[%clk 0:01:25.9]} 59... Ke2 {[%clk
0:00:16]} 60. g6 {[%clk 0:01:27.5]} 1-0

[Event "*** Titled Tuesday 3|2 Blitz"]
[Site "Chess.com"]
[Date "2016.01.05"]
[Round "3"]
[White "Zlatan56"]
[Black "GianmarcoVaR"]
[Result "0-1"]
[WhiteElo "2536"]
[BlackElo "2270"]
[TimeControl "180+2"]
[EndTime "17:37:46 PST"]
[Termination "GianmarcoVaR won by resignation"]

1. Nf3 {[%clk 0:03:01.9]} 1... Nf6 {[%clk 0:02:56.2]} 2. g3 {[%clk 0:03:03.8]}
2... b6 {[%clk 0:02:55.5]} 3. Bg2 {[%clk 0:03:03.9]} 3... Bb7 {[%clk 0:02:56.9]}
4. O-O {[%clk 0:03:05.5]} 4... c5 {[%clk 0:02:56.6]} 5. c4 {[%clk 0:03:03.6]}
5... g6 {[%clk 0:02:57.6]} 6. b3 {[%clk 0:03:04]} 6... Bg7 {[%clk 0:02:58.8]} 7.
Bb2 {[%clk 0:03:05.5]} 7... O-O {[%clk 0:03:00.3]} 8. Nc3 {[%clk 0:03:05.5]}
8... Ne4 {[%clk 0:03:00.7]} 9. Qc2 {[%clk 0:03:03]} 9... Nxc3 {[%clk 0:02:56.4]}
10. Bxc3 {[%clk 0:03:04.9]} 10... d6 {[%clk 0:02:42.1]} 11. d4 {[%clk
0:02:58.5]} 11... cxd4 {[%clk 0:02:34.7]} 12. Bxd4 {[%clk 0:02:50.3]} 12... Bxd4
{[%clk 0:02:27]} 13. Nxd4 {[%clk 0:02:50.6]} 13... Bxg2 {[%clk 0:02:27.1]} 14.
Kxg2 {[%clk 0:02:52.5]} 14... Qd7 {[%clk 0:02:24.1]} 15. Qc3 {[%clk 0:02:52.8]}
15... Nc6 {[%clk 0:02:23.6]} 16. Nc2 {[%clk 0:02:51.8]} 16... Rfc8 {[%clk
0:02:18.4]} 17. Ne3 {[%clk 0:02:47.8]} 17... Ne5 {[%clk 0:01:54.3]} 18. Qd4
{[%clk 0:02:36.8]} 18... b5 {[%clk 0:01:48.7]} 19. cxb5 {[%clk 0:02:34.8]} 19...
Qxb5 {[%clk 0:01:46.7]} 20. Rfe1 {[%clk 0:02:30.1]} 20... Qc5 {[%clk 0:01:09.2]}
21. Rad1 {[%clk 0:02:16.9]} 21... Qxd4 {[%clk 0:00:57.8]} 22. Rxd4 {[%clk
0:02:18.8]} 22... Kf8 {[%clk 0:00:56.1]} 23. f4 {[%clk 0:02:16.7]} 23... Nd7
{[%clk 0:00:55.5]} 24. Rc4 {[%clk 0:02:06.5]} 24... Nb6 {[%clk 0:00:55.5]} 25.
Rxc8+ {[%clk 0:02:02.8]} 25... Rxc8 {[%clk 0:00:56.9]} 26. Rd1 {[%clk 0:02:03]}
26... Ke8 {[%clk 0:00:46]} 27. Kf2 {[%clk 0:02:00.9]} 27... Kd7 {[%clk
0:00:44.5]} 28. g4 {[%clk 0:01:59.6]} 28... e6 {[%clk 0:00:43.3]} 29. h4 {[%clk
0:01:49.1]} 29... d5 {[%clk 0:00:44.3]} 30. h5 {[%clk 0:01:50.7]} 30... a5
{[%clk 0:00:28.3]} 31. h6 {[%clk 0:01:51.4]} 31... Rc3 {[%clk 0:00:20.6]} 32. g5
{[%clk 0:01:51]} 32... Kd6 {[%clk 0:00:17.7]} 33. Ng4 {[%clk 0:01:45.1]} 33...
Nd7 {[%clk 0:00:18.2]} 34. Rd4 {[%clk 0:01:42.1]} 34... Kc5 {[%clk 0:00:14.2]}
35. Ra4 {[%clk 0:01:41.4]} 35... Kb5 {[%clk 0:00:14.1]} 36. e4 {[%clk 0:01:38]}
36... Nc5 {[%clk 0:00:13.6]} 37. exd5 {[%clk 0:00:48.4]} 37... Nxa4 {[%clk
0:00:12.9]} 38. bxa4+ {[%clk 0:00:49.4]} 38... Kxa4 {[%clk 0:00:13.9]} 39. d6
{[%clk 0:00:50.6]} 39... Rd3 {[%clk 0:00:11.3]} 40. Nf6 {[%clk 0:00:51.6]} 40...
Rxd6 {[%clk 0:00:11.4]} 41. Nxh7 {[%clk 0:00:52.3]} 41... Rd8 {[%clk 0:00:09.9]}
42. Nf6 {[%clk 0:00:50.6]} 42... Ka3 {[%clk 0:00:10.6]} 43. h7 {[%clk
0:00:47.7]} 43... Rh8 {[%clk 0:00:10.3]} 44. Ke3 {[%clk 0:00:49.2]} 44... Kxa2
{[%clk 0:00:11.2]} 45. Kd4 {[%clk 0:00:46.3]} 45... Kb3 {[%clk 0:00:08.3]} 46.
Kc5 {[%clk 0:00:43.6]} 46... a4 {[%clk 0:00:09]} 47. Kd6 {[%clk 0:00:45.2]}
47... a3 {[%clk 0:00:09.9]} 48. Ke7 {[%clk 0:00:46.8]} 48... a2 {[%clk 0:00:11]}
49. Kxf7 {[%clk 0:00:47.9]} 49... a1=Q {[%clk 0:00:10.3]} 50. Kxg6 {[%clk
0:00:49.4]} 50... Qa7 {[%clk 0:00:10.4]} 51. Kh6 {[%clk 0:00:48.5]} 51... Qf7
{[%clk 0:00:11.6]} 0-1

[Event "*** Titled Tuesday 3|2 Blitz"]
[Site "Chess.com"]
[Date "2016.01.05"]
[Round "3"]
[White "AlexanderL"]
[Black "JusticeBot"]
[Result "1-0"]
[WhiteElo "2601"]
[BlackElo "2479"]
[TimeControl "180+2"]
[EndTime "17:37:51 PST"]
[Termination "AlexanderL won by resignation"]

1. d4 {[%clk 0:03:01.9]} 1... Nf6 {[%clk 0:02:59.3]} 2. c4 {[%clk 0:03:02.9]}
2... e6 {[%clk 0:03:00.9]} 3. Nc3 {[%clk 0:03:04]} 3... Bb4 {[%clk 0:03:02.5]}
4. Qc2 {[%clk 0:03:05.2]} 4... O-O {[%clk 0:03:03.9]} 5. Nf3 {[%clk 0:03:06.2]}
5... c5 {[%clk 0:02:59.8]} 6. dxc5 {[%clk 0:03:07.2]} 6... Na6 {[%clk
0:03:00.3]} 7. g3 {[%clk 0:03:08.2]} 7... Nxc5 {[%clk 0:02:57.2]} 8. Bg2 {[%clk
0:03:09.5]} 8... b6 {[%clk 0:02:53.2]} 9. O-O {[%clk 0:03:08]} 9... Bb7 {[%clk
0:02:53.7]} 10. Nb5 {[%clk 0:03:09.2]} 10... Be4 {[%clk 0:02:42.8]} 11. Qd1
{[%clk 0:03:10]} 11... Nb7 {[%clk 0:02:42.1]} 12. a3 {[%clk 0:02:41.9]} 12...
Be7 {[%clk 0:02:42.3]} 13. Bf4 {[%clk 0:02:42.7]} 13... d6 {[%clk 0:02:33.9]}
14. Rc1 {[%clk 0:02:36.4]} 14... a6 {[%clk 0:02:33.9]} 15. Nc3 {[%clk
0:02:36.7]} 15... Bc6 {[%clk 0:02:15.5]} 16. b4 {[%clk 0:02:37]} 16... Qc8
{[%clk 0:02:12.3]} 17. Qb3 {[%clk 0:02:31.4]} 17... Rd8 {[%clk 0:02:06.8]} 18.
Rfd1 {[%clk 0:02:29.5]} 18... e5 {[%clk 0:01:45.1]} 19. Be3 {[%clk 0:02:29.5]}
19... Qc7 {[%clk 0:01:45.3]} 20. Nd5 {[%clk 0:02:26.7]} 20... Bxd5 {[%clk
0:01:35.7]} 21. cxd5 {[%clk 0:02:27.8]} 21... Qd7 {[%clk 0:01:35.4]} 22. Bxb6
{[%clk 0:02:28.6]} 22... Rdc8 {[%clk 0:01:37]} 23. Rc6 {[%clk 0:02:04.4]} 23...
Nd8 {[%clk 0:01:00.7]} 24. Bxd8 {[%clk 0:02:05]} 24... Bxd8 {[%clk 0:00:59.5]}
25. Rdc1 {[%clk 0:02:05.8]} 25... Rcb8 {[%clk 0:01:00.8]} 26. Nd2 {[%clk
0:02:02]} 26... a5 {[%clk 0:00:57.4]} 27. Nc4 {[%clk 0:02:02]} 27... axb4 {[%clk
0:00:56.7]} 28. axb4 {[%clk 0:02:03.2]} 28... Ne8 {[%clk 0:00:56.2]} 29. b5
{[%clk 0:01:58.6]} 29... Rb7 {[%clk 0:00:31.1]} 30. b6 {[%clk 0:01:56.2]} 30...
Rab8 {[%clk 0:00:32.3]} 31. Rb1 {[%clk 0:01:41]} 31... h5 {[%clk 0:00:29.9]} 32.
Qe3 {[%clk 0:01:26.1]} 32... Ra8 {[%clk 0:00:30.8]} 33. Qc3 {[%clk 0:01:12.3]}
33... g6 {[%clk 0:00:30.3]} 34. Ra1 {[%clk 0:01:08.3]} 34... Rab8 {[%clk
0:00:29]} 35. Qb4 {[%clk 0:01:07.1]} 35... Kg7 {[%clk 0:00:26.3]} 36. Rb1 {[%clk
0:01:02.2]} 36... Ra8 {[%clk 0:00:26.6]} 37. Nxd6 {[%clk 0:00:56.9]} 37... Nxd6
{[%clk 0:00:13.2]} 38. Rxd6 {[%clk 0:00:50.6]} 38... Qe7 {[%clk 0:00:14.2]} 39.
Rc6 {[%clk 0:00:37]} 39... Qxb4 {[%clk 0:00:14.2]} 40. Rxb4 {[%clk 0:00:38.9]}
40... Ra1+ {[%clk 0:00:15.4]} 41. Bf1 {[%clk 0:00:39.9]} 41... Rd1 {[%clk
0:00:15.5]} 42. e4 {[%clk 0:00:34.7]} 42... h4 {[%clk 0:00:15.4]} 43. gxh4
{[%clk 0:00:24.4]} 43... Rd2 {[%clk 0:00:15.3]} 44. Rb3 {[%clk 0:00:17.2]} 44...
Bxh4 {[%clk 0:00:15.6]} 45. Rf3 {[%clk 0:00:12.3]} 45... Rb2 {[%clk 0:00:15.9]}
46. Rc7 {[%clk 0:00:11.5]} 46... R2xb6 {[%clk 0:00:10.1]} 47. Rfxf7+ {[%clk
0:00:11.8]} 1-0

[Event "*** Titled Tuesday 3|2 Blitz"]
[Site "Chess.com"]
[Date "2016.01.05"]
[Round "3"]
[White "alex_zapata"]
[Black "Jahonas"]
[Result "1/2-1/2"]
[WhiteElo "2185"]
[BlackElo "2097"]
[TimeControl "180+2"]
[EndTime "17:37:58 PST"]
[Termination "Game drawn by agreement"]

1. e4 {[%clk 0:03:01.9]} 1... c5 {[%clk 0:02:51.2]} 2. Nf3 {[%clk 0:03:00.3]}
2... d6 {[%clk 0:02:52]} 3. d4 {[%clk 0:03:01.1]} 3... cxd4 {[%clk 0:02:52.7]}
4. Nxd4 {[%clk 0:03:03]} 4... Nf6 {[%clk 0:02:53.9]} 5. Nc3 {[%clk 0:03:04.5]}
5... a6 {[%clk 0:02:54.5]} 6. Bg5 {[%clk 0:03:05.9]} 6... e6 {[%clk 0:02:55.4]}
7. f4 {[%clk 0:03:07.2]} 7... Nbd7 {[%clk 0:02:56.6]} 8. Qf3 {[%clk 0:03:07.1]}
8... Qc7 {[%clk 0:02:56.2]} 9. O-O-O {[%clk 0:03:08.5]} 9... Be7 {[%clk
0:02:54.5]} 10. Bd3 {[%clk 0:03:05.9]} 10... b5 {[%clk 0:02:52.8]} 11. Rhe1
{[%clk 0:03:06.6]} 11... Bb7 {[%clk 0:02:53.6]} 12. Qg3 {[%clk 0:03:06.9]} 12...
Nc5 {[%clk 0:02:51]} 13. e5 {[%clk 0:03:03.5]} 13... Nxd3+ {[%clk 0:02:50.9]}
14. Rxd3 {[%clk 0:03:02.9]} 14... dxe5 {[%clk 0:02:51.5]} 15. fxe5 {[%clk
0:03:03]} 15... Nh5 {[%clk 0:02:23.9]} 16. Qh4 {[%clk 0:03:02.6]} 16... Bxg5+
{[%clk 0:02:20.4]} 17. Qxg5 {[%clk 0:03:04.5]} 17... g6 {[%clk 0:02:21.2]} 18.
Ndxb5 {[%clk 0:02:37.1]} 18... axb5 {[%clk 0:02:21.5]} 19. g4 {[%clk 0:02:31.3]}
19... Qe7 {[%clk 0:02:11.8]} 20. Qxe7+ {[%clk 0:02:29.4]} 20... Kxe7 {[%clk
0:02:12.7]} 21. gxh5 {[%clk 0:02:30.5]} 21... b4 {[%clk 0:02:11.1]} 22. Nb5
{[%clk 0:02:26]} 22... Rxa2 {[%clk 0:02:09.3]} 23. Rb3 {[%clk 0:01:56.8]} 23...
Rd8 {[%clk 0:01:37.8]} 24. Nd6 {[%clk 0:01:48.7]} 24... Ra1+ {[%clk 0:01:33.2]}
25. Kd2 {[%clk 0:01:48.8]} 25... Ra4 {[%clk 0:01:30.8]} 26. Rd3 {[%clk
0:01:42.6]} 26... Ba6 {[%clk 0:01:28.2]} 27. Rd4 {[%clk 0:01:34.5]} 27... Ra2
{[%clk 0:01:17.3]} 28. hxg6 {[%clk 0:01:19.1]} 28... hxg6 {[%clk 0:01:16.8]} 29.
Rxb4 {[%clk 0:01:06.8]} 29... f6 {[%clk 0:01:14.9]} 30. Kc3 {[%clk 0:01:07.4]}
30... fxe5 {[%clk 0:01:13.6]} 31. Ne4 {[%clk 0:01:08.1]} 31... Ra5 {[%clk
0:00:30.1]} 32. Rb6 {[%clk 0:01:01.5]} 32... Rc8+ {[%clk 0:00:29.6]} 33. Kb4
{[%clk 0:00:56.1]} 33... Ra2 {[%clk 0:00:29.1]} 34. b3 {[%clk 0:00:45.2]} 34...
Rcxc2 {[%clk 0:00:27.5]} 35. Nc5 {[%clk 0:00:45.4]} 35... Bc8 {[%clk 0:00:26.1]}
36. Rxe5 {[%clk 0:00:43.6]} 36... Re2 {[%clk 0:00:26.3]} 37. Rxe2 {[%clk
0:00:41.4]} 37... Rxe2 {[%clk 0:00:28.2]} 38. Rc6 {[%clk 0:00:42.6]} 38... Kd8
{[%clk 0:00:24]} 39. Kc3 {[%clk 0:00:32.2]} 39... Rxh2 {[%clk 0:00:23.6]} 40.
Nxe6+ {[%clk 0:00:30]} 40... Bxe6 {[%clk 0:00:23.9]} 41. Rxe6 {[%clk 0:00:30.8]}
41... Rg2 {[%clk 0:00:23.7]} 42. b4 {[%clk 0:00:31.4]} 42... Kc7 {[%clk
0:00:24.6]} 43. b5 {[%clk 0:00:31.8]} 43... Rg4 {[%clk 0:00:25.2]} 44. Rf6
{[%clk 0:00:31.1]} 44... Kb7 {[%clk 0:00:25.7]} 45. Kb3 {[%clk 0:00:31]} 45...
Kc7 {[%clk 0:00:25.9]} 46. Kc3 {[%clk 0:00:31]} 46... Kb7 {[%clk 0:00:27.1]} 47.
Rc6 {[%clk 0:00:28.6]} 47... g5 {[%clk 0:00:27.8]} 48. Rg6 {[%clk 0:00:28.9]}
48... Kc7 {[%clk 0:00:27.8]} 49. Kd3 {[%clk 0:00:27.3]} 49... Kb7 {[%clk
0:00:28.7]} 50. Ke3 {[%clk 0:00:27.7]} 50... Rb4 {[%clk 0:00:28.8]} 51. Rxg5
{[%clk 0:00:27.5]} 51... Kb6 {[%clk 0:00:30]} 1/2-1/2

[Event "*** Titled Tuesday 3|2 Blitz"]
[Site "Chess.com"]
[Date "2016.01.05"]
[Round "3"]
[White "LePatronn"]
[Black "Recombinant"]
[Result "0-1"]
[WhiteElo "1824"]
[BlackElo "2186"]
[TimeControl "180+2"]
[EndTime "17:38:28 PST"]
[Termination "Recombinant won by resignation"]

1. e4 {[%clk 0:03:00.3]} 1... c5 {[%clk 0:02:55.3]} 2. Nf3 {[%clk 0:03:00.6]}
2... d6 {[%clk 0:02:56.3]} 3. Bb5+ {[%clk 0:03:00.5]} 3... Bd7 {[%clk
0:02:56.9]} 4. Bxd7+ {[%clk 0:03:01.4]} 4... Qxd7 {[%clk 0:02:58.2]} 5. O-O
{[%clk 0:03:02.6]} 5... Nc6 {[%clk 0:02:59.4]} 6. c3 {[%clk 0:03:03.9]} 6... e6
{[%clk 0:03:00.4]} 7. d4 {[%clk 0:03:04.6]} 7... Nf6 {[%clk 0:02:51.5]} 8. d5
{[%clk 0:03:03.6]} 8... Ne5 {[%clk 0:02:42]} 9. Nxe5 {[%clk 0:03:03.4]} 9...
dxe5 {[%clk 0:02:42.8]} 10. dxe6 {[%clk 0:03:04.1]} 10... Qxe6 {[%clk
0:02:42.9]} 11. Qe2 {[%clk 0:03:02.3]} 11... Bd6 {[%clk 0:02:42.4]} 12. Qb5+
{[%clk 0:02:59.7]} 12... Qd7 {[%clk 0:02:43.3]} 13. Qxd7+ {[%clk 0:02:58.1]}
13... Nxd7 {[%clk 0:02:45.2]} 14. Rd1 {[%clk 0:02:57.3]} 14... Ke7 {[%clk
0:02:45.9]} 15. Nd2 {[%clk 0:02:58.4]} 15... b5 {[%clk 0:02:40.4]} 16. a4 {[%clk
0:02:59.5]} 16... a6 {[%clk 0:02:41.3]} 17. b3 {[%clk 0:02:43.1]} 17... Nb6
{[%clk 0:02:41.6]} 18. a5 {[%clk 0:02:32.9]} 18... Nd7 {[%clk 0:02:41.8]} 19.
Rb1 {[%clk 0:02:33]} 19... Rhd8 {[%clk 0:02:39.6]} 20. b4 {[%clk 0:02:32.6]}
20... c4 {[%clk 0:02:37.6]} 21. Nf3 {[%clk 0:02:29]} 21... f6 {[%clk 0:02:34.7]}
22. Be3 {[%clk 0:02:25.5]} 22... g6 {[%clk 0:02:29]} 23. Rd5 {[%clk 0:02:25.3]}
23... Nf8 {[%clk 0:02:25.2]} 24. Bb6 {[%clk 0:02:25]} 24... Rd7 {[%clk
0:02:19.8]} 25. Rbd1 {[%clk 0:02:25.6]} 25... Bc7 {[%clk 0:02:19.6]} 26. Bc5+
{[%clk 0:02:23.1]} 26... Ke8 {[%clk 0:02:14.2]} 27. Bxf8 {[%clk 0:02:18.9]}
27... Rxd5 {[%clk 0:02:14.9]} 28. Rxd5 {[%clk 0:02:18.3]} 28... Kxf8 {[%clk
0:02:15.5]} 29. Rd7 {[%clk 0:02:19.4]} 29... Rd8 {[%clk 0:02:14.3]} 30. Rxd8+
{[%clk 0:02:08.6]} 30... Bxd8 {[%clk 0:02:15.2]} 31. Nd2 {[%clk 0:02:09.6]}
31... Kf7 {[%clk 0:02:13.1]} 32. Nf1 {[%clk 0:02:09.7]} 32... f5 {[%clk
0:02:11.5]} 33. f3 {[%clk 0:02:09.9]} 33... Ke6 {[%clk 0:02:11.2]} 34. Kf2
{[%clk 0:02:06.7]} 34... Bg5 {[%clk 0:02:10.6]} 35. Ke2 {[%clk 0:02:02.7]} 35...
h5 {[%clk 0:02:08.7]} 36. Ne3 {[%clk 0:01:58.1]} 36... Bf4 {[%clk 0:02:04.3]}
37. Nd5 {[%clk 0:01:55.2]} 37... fxe4 {[%clk 0:01:57.9]} 38. fxe4 {[%clk
0:01:35]} 38... Kd6 {[%clk 0:01:54.6]} 39. Nxf4 {[%clk 0:01:20.1]} 39... exf4
{[%clk 0:01:54]} 40. h4 {[%clk 0:01:18.9]} 40... Ke6 {[%clk 0:01:47.6]} 41. Kf2
{[%clk 0:01:18.9]} 41... Kf6 {[%clk 0:01:48.3]} 42. Ke2 {[%clk 0:01:16.7]} 42...
g5 {[%clk 0:01:48.7]} 43. hxg5+ {[%clk 0:01:15.9]} 43... Kxg5 {[%clk 0:01:50.6]}
44. Kf3 {[%clk 0:01:16.7]} 44... h4 {[%clk 0:01:50.5]} 45. e5 {[%clk 0:01:17.1]}
45... Kf5 {[%clk 0:01:50]} 46. e6 {[%clk 0:01:18.3]} 46... Kxe6 {[%clk
0:01:51.1]} 47. Kxf4 {[%clk 0:01:19.6]} 47... Kd5 {[%clk 0:01:50.9]} 48. Kf5
{[%clk 0:01:12.9]} 48... Kd6 {[%clk 0:01:50.5]} 49. Kg5 {[%clk 0:01:09.6]} 49...
Ke5 {[%clk 0:01:49.8]} 50. Kxh4 {[%clk 0:01:10.2]} 50... Ke4 {[%clk 0:01:51.7]}
51. g4 {[%clk 0:01:10.8]} 51... Kd3 {[%clk 0:01:53.6]} 52. g5 {[%clk 0:01:12.2]}
52... Kxc3 {[%clk 0:01:55.5]} 53. g6 {[%clk 0:01:13.6]} 53... Kb2 {[%clk
0:01:50.3]} 54. g7 {[%clk 0:01:14.5]} 54... c3 {[%clk 0:01:51.8]} 55. g8=Q
{[%clk 0:01:15.4]} 55... c2 {[%clk 0:01:53.2]} 56. Qg2 {[%clk 0:01:10.8]} 56...
Kb1 {[%clk 0:01:53.5]} 57. Qe4 {[%clk 0:01:10.6]} 57... Kb2 {[%clk 0:01:54.9]}
58. Qe2 {[%clk 0:01:10.7]} 58... Kb1 {[%clk 0:01:55.3]} 59. Qd3 {[%clk
0:01:09.8]} 59... Kb2 {[%clk 0:01:56.6]} 60. Qd2 {[%clk 0:01:09.5]} 60... Kb1
{[%clk 0:01:58.1]} 61. Qd3 {[%clk 0:01:08.4]} 61... Kb2 {[%clk 0:01:59.2]} 62.
Qd4+ {[%clk 0:01:02.7]} 62... Kb1 {[%clk 0:01:58.9]} 63. Qe4 {[%clk 0:00:48]}
63... Kb2 {[%clk 0:01:59.6]} 64. Qe2 {[%clk 0:00:44.6]} 64... Kb1 {[%clk
0:02:00.5]} 65. Qd3 {[%clk 0:00:25.9]} 65... Kb2 {[%clk 0:02:01.2]} 66. Qd4+
{[%clk 0:00:27.1]} 66... Kb1 {[%clk 0:02:02.1]} 67. Qe4 {[%clk 0:00:28]} 67...
Kb2 {[%clk 0:02:03.2]} 68. Qe5+ {[%clk 0:00:29]} 68... Kb1 {[%clk 0:02:04.2]}
69. Qf5 {[%clk 0:00:29.5]} 69... Kb2 {[%clk 0:02:05.4]} 70. Qf6+ {[%clk
0:00:30.7]} 70... Kb1 {[%clk 0:02:06.8]} 71. Qg6 {[%clk 0:00:31.8]} 71... Kb2
{[%clk 0:02:08.2]} 72. Qxa6 {[%clk 0:00:28.6]} 72... c1=Q {[%clk 0:02:07]} 73.
Qf6+ {[%clk 0:00:29.1]} 73... Kb3 {[%clk 0:02:04.8]} 74. a6 {[%clk 0:00:24.6]}
74... Qc4+ {[%clk 0:01:54.7]} 75. Kg5 {[%clk 0:00:21.5]} 75... Qxb4 {[%clk
0:01:44.6]} 76. Qf3+ {[%clk 0:00:14.6]} 76... Ka4 {[%clk 0:01:39.5]} 77. Qe4
{[%clk 0:00:15.3]} 77... Qxe4 {[%clk 0:01:38.7]} 0-1